[Event "Titled Tuesday Blitz August 08 Early 2023"]
[White "Megaranto, Susanto"]
[Black "Mammadzada, Gunay"]
[WhiteFideId "7101384"]
[BlackFideId "13403729"]
[WhiteElo "2971"]
[BlackElo "2521"]
[Result "1/2-1/2"]
[Round "6"]
[TimeControl "180+1"]
[Date "2023.08.08"]
[WhiteClock "0:01:05"]
[BlackClock "0:00:03"]
[Board "57"]

1. d4 {[%clk 0:03:00]}  d5 {[%clk 0:02:43]} 2. Nf3 {[%clk 0:02:59]}  Nf6 {[%clk 0:02:43]} 3. c4 {[%clk 0:03:00]}  c6 {[%clk 0:02:43]} 4. Nc3 {[%clk 0:02:56]}  dxc4 {[%clk 0:02:41]} 5. a4 {[%clk 0:02:55]}  Bf5 {[%clk 0:02:40]} 6. e3 {[%clk 0:02:55]}  e6 {[%clk 0:02:37]} 7. Bxc4 {[%clk 0:02:55]}  Bb4 {[%clk 0:02:38]} 8. O-O {[%clk 0:02:55]}  O-O {[%clk 0:02:39]} 9. h3 {[%clk 0:02:55]}  Bg6 {[%clk 0:02:36]} 10. Nh4 {[%clk 0:02:52]}  Nd5 {[%clk 0:02:31]} 11. Nxg6 {[%clk 0:02:51]}  hxg6 {[%clk 0:02:32]} 12. Qc2 {[%clk 0:02:47]}  a5 {[%clk 0:02:25]} 13. Rd1 {[%clk 0:02:44]}  Nd7 {[%clk 0:02:19]} 14. e4 {[%clk 0:02:43]}  N5b6 {[%clk 0:02:19]} 15. Bb3 {[%clk 0:02:43]}  Qh4 {[%clk 0:02:16]} 16. Be3 {[%clk 0:02:38]}  Rac8 {[%clk 0:02:10]} 17. f3 {[%clk 0:02:35]}  c5 {[%clk 0:02:07]} 18. d5 {[%clk 0:02:34]}  c4 {[%clk 0:02:07]} 19. Ba2 {[%clk 0:02:33]}  Bc5 {[%clk 0:02:01]} 20. Qf2 {[%clk 0:02:27]}  Qxf2+ {[%clk 0:01:56]} 21. Kxf2 {[%clk 0:02:24]}  Bxe3+ {[%clk 0:01:49]} 22. Kxe3 {[%clk 0:02:25]}  Nc5 {[%clk 0:01:47]} 23. dxe6 {[%clk 0:02:23]}  fxe6 {[%clk 0:01:45]} 24. Rd6 {[%clk 0:02:21]}  Ncxa4 {[%clk 0:01:30]} 25. Rxe6 {[%clk 0:02:14]}  Rf6 {[%clk 0:01:23]} 26. Re7 {[%clk 0:02:07]}  Nc5 {[%clk 0:01:10]} 27. Rd1 {[%clk 0:02:01]}  Rf7 {[%clk 0:00:40]} 28. Rxf7 {[%clk 0:01:53]}  Kxf7 {[%clk 0:00:41]} 29. Rd6 {[%clk 0:01:49]}  Rc6 {[%clk 0:00:36]} 30. Rxc6 {[%clk 0:01:46]}  bxc6 {[%clk 0:00:37]} 31. Kd4 {[%clk 0:01:47]}  Nd3 {[%clk 0:00:38]} 32. Bxc4+ {[%clk 0:01:36]}  Nxc4 {[%clk 0:00:37]} 33. Kxc4 {[%clk 0:01:37]}  Nxb2+ {[%clk 0:00:34]} 34. Kc5 {[%clk 0:01:36]}  g5 {[%clk 0:00:26]} 35. Kxc6 {[%clk 0:01:34]}  a4 {[%clk 0:00:26]} 36. Kd6 {[%clk 0:01:30]}  a3 {[%clk 0:00:26]} 37. e5 {[%clk 0:01:29]}  Nc4+ {[%clk 0:00:23]} 38. Kd5 {[%clk 0:01:29]}  Ne3+ {[%clk 0:00:23]} 39. Kd6 {[%clk 0:01:28]}  Nc4+ {[%clk 0:00:13]} 40. Kd5 {[%clk 0:01:28]}  Ne3+ {[%clk 0:00:12]} 41. Ke4 {[%clk 0:01:22]}  Nxg2 {[%clk 0:00:12]} 42. Kf5 {[%clk 0:01:23]}  Ne3+ {[%clk 0:00:11]} 43. Kxg5 {[%clk 0:01:21]}  Ke6 {[%clk 0:00:12]} 44. f4 {[%clk 0:01:20]}  Nd5 {[%clk 0:00:06]} 45. Na2 {[%clk 0:01:18]}  g6 {[%clk 0:00:04]} 46. h4 {[%clk 0:01:18]}  Kf7 {[%clk 0:00:04]} 47. Kg4 {[%clk 0:01:03]}  Ke6 {[%clk 0:00:03]} 48. Kg5 {[%clk 0:01:04]}  Kf7 {[%clk 0:00:03]} 49. f5 {[%clk 0:01:05]}  gxf5 {[%clk 0:00:02]} 50. Kxf5 {[%clk 0:01:05]}  Ne7+ {[%clk 0:00:03]} 51. Kg5 {[%clk 0:01:04]}  Ke6 {[%clk 0:00:03]} 52. h5 {[%clk 0:01:04]}  Ng8 {[%clk 0:00:01]} 53. Kg6 {[%clk 0:01:04]}  Kxe5 {[%clk 0:00:01]} 54. Kg7 {[%clk 0:01:04]}  Nf6 {[%clk 0:00:02]} 55. h6 {[%clk 0:01:03]}  Kf5 {[%clk 0:00:02]} 56. Kf7 {[%clk 0:01:02]}  Kg5 {[%clk 0:00:02]} 57. Kg7 {[%clk 0:01:03]}  Nh5+ {[%clk 0:00:02]} 58. Kh7 {[%clk 0:01:03]}  Nf6+ {[%clk 0:00:02]} 59. Kg7 {[%clk 0:01:04]}  Nh5+ {[%clk 0:00:02]} 60. Kh7 {[%clk 0:01:04]}  Nf6+ {[%clk 0:00:03]} 61. Kg7 {[%clk 0:01:05]} 1/2-1/2


[Site "https://www.chess.com"]

[Event "Titled Tuesday Blitz August 08 Early 2023"]
[White "Borgaonkar Akshay"]
[Black "JeRoma71"]
[WhiteFideId "25639110"]
[WhiteElo "2580"]
[BlackElo "2817"]
[Result "1/2-1/2"]
[Round "6"]
[TimeControl "180+1"]
[Date "2023.08.08"]
[WhiteClock "0:00:04"]
[BlackClock "0:00:06"]
[Board "60"]

1. e4 {[%clk 0:02:56]}  a6 {[%clk 0:02:58]} 2. d4 {[%clk 0:02:55]}  b5 {[%clk 0:02:57]} 3. a4 {[%clk 0:02:54]}  Bb7 {[%clk 0:02:58]} 4. axb5 {[%clk 0:02:50]}  axb5 {[%clk 0:02:58]} 5. Rxa8 {[%clk 0:02:48]}  Bxa8 {[%clk 0:02:59]} 6. f3 {[%clk 0:02:44]}  b4 {[%clk 0:02:58]} 7. c3 {[%clk 0:02:38]}  e6 {[%clk 0:02:58]} 8. Bd3 {[%clk 0:02:31]}  Nf6 {[%clk 0:02:57]} 9. Ne2 {[%clk 0:02:30]}  c5 {[%clk 0:02:57]} 10. O-O {[%clk 0:02:27]}  Nc6 {[%clk 0:02:57]} 11. Be3 {[%clk 0:02:21]}  cxd4 {[%clk 0:02:53]} 12. cxd4 {[%clk 0:02:20]}  Be7 {[%clk 0:02:52]} 13. Nd2 {[%clk 0:02:17]}  O-O {[%clk 0:02:51]} 14. Qa4 {[%clk 0:02:11]}  d5 {[%clk 0:02:45]} 15. e5 {[%clk 0:02:11]}  Nd7 {[%clk 0:02:45]} 16. Ra1 {[%clk 0:02:11]}  Qb6 {[%clk 0:02:41]} 17. Bf2 {[%clk 0:01:53]}  Bb7 {[%clk 0:02:40]} 18. Qb5 {[%clk 0:01:50]}  f6 {[%clk 0:02:39]} 19. exf6 {[%clk 0:01:40]}  Bxf6 {[%clk 0:02:38]} 20. Nb3 {[%clk 0:01:29]}  Be7 {[%clk 0:02:29]} 21. Qxb6 {[%clk 0:01:16]}  Nxb6 {[%clk 0:02:29]} 22. Ba6 {[%clk 0:01:16]}  Rb8 {[%clk 0:02:20]} 23. Bg3 {[%clk 0:01:14]}  Bxa6 {[%clk 0:02:16]} 24. Rxa6 {[%clk 0:01:12]}  Rb7 {[%clk 0:02:07]} 25. Nc5 {[%clk 0:01:10]}  Nb8 {[%clk 0:01:50]} 26. Bxb8 {[%clk 0:00:25]}  Rxb8 {[%clk 0:01:50]} 27. Nxe6 {[%clk 0:00:26]}  b3 {[%clk 0:01:45]} 28. Ra7 {[%clk 0:00:16]}  Bf6 {[%clk 0:01:44]} 29. Nc5 {[%clk 0:00:14]}  Nc4 {[%clk 0:01:42]} 30. Nd7 {[%clk 0:00:13]}  Rb4 {[%clk 0:01:33]} 31. Nxf6+ {[%clk 0:00:13]}  gxf6 {[%clk 0:01:33]} 32. Nc1 {[%clk 0:00:13]}  Nxb2 {[%clk 0:01:31]} 33. Ra3 {[%clk 0:00:14]}  Rxd4 {[%clk 0:01:29]} 34. Rxb3 {[%clk 0:00:14]}  Nc4 {[%clk 0:01:27]} 35. Ne2 {[%clk 0:00:11]}  Rd2 {[%clk 0:01:13]} 36. Kf2 {[%clk 0:00:09]}  Kf7 {[%clk 0:01:12]} 37. Rb7+ {[%clk 0:00:06]}  Ke6 {[%clk 0:01:11]} 38. Rxh7 {[%clk 0:00:06]}  d4 {[%clk 0:01:11]} 39. Rh4 {[%clk 0:00:07]}  Kd5 {[%clk 0:01:05]} 40. Ke1 {[%clk 0:00:07]}  d3 {[%clk 0:00:54]} 41. Nc3+ {[%clk 0:00:06]}  Ke5 {[%clk 0:00:46]} 42. Rxc4 {[%clk 0:00:07]}  Rxg2 {[%clk 0:00:46]} 43. Re4+ {[%clk 0:00:04]}  Kf5 {[%clk 0:00:46]} 44. Nd5 {[%clk 0:00:04]}  Rxh2 {[%clk 0:00:43]} 45. Ne3+ {[%clk 0:00:04]}  Kg6 {[%clk 0:00:43]} 46. Nd5 {[%clk 0:00:02]}  f5 {[%clk 0:00:41]} 47. Nf4+ {[%clk 0:00:02]}  Kg5 {[%clk 0:00:41]} 48. Rd4 {[%clk 0:00:02]}  d2+ {[%clk 0:00:37]} 49. Kd1 {[%clk 0:00:02]}  Kh4 {[%clk 0:00:34]} 50. Ne2+ {[%clk 0:00:02]}  Kh3 {[%clk 0:00:30]} 51. Kxd2 {[%clk 0:00:03]}  Kg2 {[%clk 0:00:27]} 52. Rd5 {[%clk 0:00:01]}  Kxf3 {[%clk 0:00:23]} 53. Rxf5+ {[%clk 0:00:01]}  Ke4 {[%clk 0:00:23]} 54. Ra5 {[%clk 0:00:02]}  Rh8 {[%clk 0:00:22]} 55. Ra4+ {[%clk 0:00:02]}  Ke5 {[%clk 0:00:22]} 56. Ra3 {[%clk 0:00:03]}  Rd8+ {[%clk 0:00:22]} 57. Ke3 {[%clk 0:00:04]}  Rb8 {[%clk 0:00:23]} 58. Ra5+ {[%clk 0:00:04]}  Kd6 {[%clk 0:00:23]} 59. Nd4 {[%clk 0:00:05]}  Re8+ {[%clk 0:00:23]} 60. Kd3 {[%clk 0:00:06]}  Rh8 {[%clk 0:00:23]} 61. Kc4 {[%clk 0:00:06]}  Rc8+ {[%clk 0:00:23]} 62. Kd3 {[%clk 0:00:07]}  Rh8 {[%clk 0:00:23]} 63. Nc2 {[%clk 0:00:06]}  Rh4 {[%clk 0:00:22]} 64. Ne3 {[%clk 0:00:06]}  Kc6 {[%clk 0:00:22]} 65. Ra6+ {[%clk 0:00:06]}  Kc5 {[%clk 0:00:21]} 66. Rf6 {[%clk 0:00:06]}  Rh3 {[%clk 0:00:20]} 67. Rf5+ {[%clk 0:00:06]}  Kc6 {[%clk 0:00:19]} 68. Kd4 {[%clk 0:00:05]}  Rh4+ {[%clk 0:00:19]} 69. Kc3 {[%clk 0:00:05]}  Rh3 {[%clk 0:00:19]} 70. Kd3 {[%clk 0:00:02]}  Kd6 {[%clk 0:00:18]} 71. Rf6+ {[%clk 0:00:02]}  Ke5 {[%clk 0:00:18]} 72. Ra6 {[%clk 0:00:03]}  Rh8 {[%clk 0:00:12]} 73. Ra5+ {[%clk 0:00:03]}  Ke6 {[%clk 0:00:11]} 74. Nc2 {[%clk 0:00:03]}  Rh4 {[%clk 0:00:10]} 75. Nd4+ {[%clk 0:00:03]}  Kd7 {[%clk 0:00:10]} 76. Kc4 {[%clk 0:00:03]}  Rh1 {[%clk 0:00:09]} 77. Nf3 {[%clk 0:00:03]}  Kd6 {[%clk 0:00:08]} 78. Ra6+ {[%clk 0:00:03]}  Ke7 {[%clk 0:00:07]} 79. Ne5 {[%clk 0:00:03]}  Re1 {[%clk 0:00:06]} 80. Kd5 {[%clk 0:00:03]}  Rd1+ {[%clk 0:00:06]} 81. Ke4 {[%clk 0:00:04]}  Re1+ {[%clk 0:00:07]} 82. Kf5 {[%clk 0:00:04]}  Rf1+ {[%clk 0:00:07]} 83. Kg5 {[%clk 0:00:05]}  Re1 {[%clk 0:00:07]} 84. Ng6+ {[%clk 0:00:04]}  Kd7 {[%clk 0:00:07]} 85. Kf5 {[%clk 0:00:04]}  Kc7 {[%clk 0:00:07]} 86. Ne5 {[%clk 0:00:03]}  Kb7 {[%clk 0:00:06]} 87. Rg6 {[%clk 0:00:03]}  Rb1 {[%clk 0:00:06]} 88. Ke6 {[%clk 0:00:03]}  Rb6+ {[%clk 0:00:06]} 89. Kf7 {[%clk 0:00:03]}  Rxg6 {[%clk 0:00:06]} 90. Nxg6 {[%clk 0:00:04]} 1/2-1/2


[Site "https://www.chess.com"]

[Event "Titled Tuesday Blitz August 08 Early 2023"]
[White "Colbow, Collin"]
[Black "Zelbel, Patrick"]
[WhiteFideId "16201132"]
[BlackFideId "24624322"]
[WhiteElo "2578"]
[BlackElo "2770"]
[Result "1/2-1/2"]
[Round "6"]
[TimeControl "180+1"]
[Date "2023.08.08"]
[WhiteClock "0:00:15"]
[BlackClock "0:00:04"]
[Board "64"]

1. d4 {[%clk 0:03:00]}  Nf6 {[%clk 0:02:59]} 2. Nf3 {[%clk 0:03:00]}  c5 {[%clk 0:02:58]} 3. e3 {[%clk 0:03:00]}  a6 {[%clk 0:02:49]} 4. dxc5 {[%clk 0:02:58]}  e6 {[%clk 0:02:47]} 5. a3 {[%clk 0:02:57]}  Bxc5 {[%clk 0:02:47]} 6. b4 {[%clk 0:02:57]}  Be7 {[%clk 0:02:46]} 7. c4 {[%clk 0:02:55]}  O-O {[%clk 0:02:40]} 8. Bb2 {[%clk 0:02:55]}  d5 {[%clk 0:02:36]} 9. Nbd2 {[%clk 0:02:55]}  b6 {[%clk 0:02:30]} 10. cxd5 {[%clk 0:02:50]}  Nxd5 {[%clk 0:02:31]} 11. Qc2 {[%clk 0:02:27]}  Bf6 {[%clk 0:02:16]} 12. Ne5 {[%clk 0:02:07]}  Bb7 {[%clk 0:02:09]} 13. Bd3 {[%clk 0:02:04]}  g6 {[%clk 0:02:04]} 14. O-O {[%clk 0:02:00]}  Nd7 {[%clk 0:02:01]} 15. Ndf3 {[%clk 0:01:47]}  Rc8 {[%clk 0:01:56]} 16. Qb3 {[%clk 0:01:46]}  Nxe5 {[%clk 0:01:39]} 17. Nxe5 {[%clk 0:01:46]}  Bxe5 {[%clk 0:01:23]} 18. Bxe5 {[%clk 0:01:47]}  Qg5 {[%clk 0:01:23]} 19. Bg3 {[%clk 0:01:40]}  Rc3 {[%clk 0:01:23]} 20. Qb1 {[%clk 0:01:40]}  Nxe3 {[%clk 0:01:22]} 21. fxe3 {[%clk 0:00:49]}  Qxe3+ {[%clk 0:01:23]} 22. Bf2 {[%clk 0:00:49]}  Qxd3 {[%clk 0:01:24]} 23. Qxd3 {[%clk 0:00:49]}  Rxd3 {[%clk 0:01:25]} 24. Bxb6 {[%clk 0:00:50]}  Rc8 {[%clk 0:00:55]} 25. Bc5 {[%clk 0:00:50]}  e5 {[%clk 0:00:51]} 26. Rad1 {[%clk 0:00:45]}  Rcd8 {[%clk 0:00:50]} 27. Rxd3 {[%clk 0:00:38]}  Rxd3 {[%clk 0:00:51]} 28. a4 {[%clk 0:00:39]}  f5 {[%clk 0:00:49]} 29. Rc1 {[%clk 0:00:31]}  Rb3 {[%clk 0:00:47]} 30. Bd6 {[%clk 0:00:31]}  Rb2 {[%clk 0:00:37]} 31. Rc7 {[%clk 0:00:28]}  Bxg2 {[%clk 0:00:33]} 32. Bxe5 {[%clk 0:00:28]}  Re2 {[%clk 0:00:30]} 33. Rg7+ {[%clk 0:00:23]}  Kf8 {[%clk 0:00:29]} 34. Rxh7 {[%clk 0:00:23]}  Bc6 {[%clk 0:00:17]} 35. Bd6+ {[%clk 0:00:23]}  Kg8 {[%clk 0:00:18]} 36. Ra7 {[%clk 0:00:24]}  Bxa4 {[%clk 0:00:11]} 37. Rxa6 {[%clk 0:00:24]}  Bb5 {[%clk 0:00:07]} 38. Rb6 {[%clk 0:00:24]}  Bd3 {[%clk 0:00:07]} 39. Bc5 {[%clk 0:00:22]}  Rb2 {[%clk 0:00:06]} 40. Rxg6+ {[%clk 0:00:21]}  Kf7 {[%clk 0:00:06]} 41. Rd6 {[%clk 0:00:21]}  Be4 {[%clk 0:00:06]} 42. Rd7+ {[%clk 0:00:20]}  Ke6 {[%clk 0:00:04]} 43. Rd6+ {[%clk 0:00:18]}  Kf7 {[%clk 0:00:04]} 44. Rd7+ {[%clk 0:00:14]}  Ke6 {[%clk 0:00:04]} 45. Rd6+ {[%clk 0:00:15]}  Kf7 {[%clk 0:00:04]} 1/2-1/2


[Site "https://www.chess.com"]

[Event "Titled Tuesday Blitz August 08 Early 2023"]
[White "Mekhitarian, Krikor Sevag"]
[Black "Taboas Rodriguez, Daniel"]
[WhiteFideId "2107660"]
[BlackFideId "2208466"]
[WhiteElo "2745"]
[BlackElo "2570"]
[Result "0-1"]
[Round "6"]
[TimeControl "180+1"]
[Date "2023.08.08"]
[WhiteClock "0:00:00"]
[BlackClock "0:00:11"]
[Board "66"]

1. Nf3 {[%clk 0:03:00]}  Nf6 {[%clk 0:02:59]} 2. c4 {[%clk 0:03:01]}  b6 {[%clk 0:03:00]} 3. d4 {[%clk 0:02:54]}  Bb7 {[%clk 0:03:00]} 4. Nc3 {[%clk 0:02:54]}  e6 {[%clk 0:02:52]} 5. e3 {[%clk 0:02:51]}  Be7 {[%clk 0:02:51]} 6. Bd3 {[%clk 0:02:50]}  O-O {[%clk 0:02:51]} 7. O-O {[%clk 0:02:45]}  d5 {[%clk 0:02:51]} 8. cxd5 {[%clk 0:02:36]}  exd5 {[%clk 0:02:51]} 9. a3 {[%clk 0:02:30]}  c5 {[%clk 0:02:49]} 10. b3 {[%clk 0:02:28]}  Nc6 {[%clk 0:02:46]} 11. dxc5 {[%clk 0:02:20]}  bxc5 {[%clk 0:02:46]} 12. Na4 {[%clk 0:02:20]}  Rc8 {[%clk 0:02:41]} 13. Bb2 {[%clk 0:02:21]}  Na5 {[%clk 0:02:06]} 14. Bc2 {[%clk 0:02:11]}  Ba6 {[%clk 0:01:54]} 15. Re1 {[%clk 0:02:11]}  Ne4 {[%clk 0:01:47]} 16. Rc1 {[%clk 0:02:01]}  Rb8 {[%clk 0:01:38]} 17. Bxe4 {[%clk 0:01:46]}  dxe4 {[%clk 0:01:38]} 18. Nd2 {[%clk 0:01:47]}  Bd3 {[%clk 0:01:33]} 19. Nxc5 {[%clk 0:01:40]}  Qd5 {[%clk 0:01:07]} 20. b4 {[%clk 0:01:25]}  Nc6 {[%clk 0:01:07]} 21. Qg4 {[%clk 0:01:19]}  Ne5 {[%clk 0:00:57]} 22. Bxe5 {[%clk 0:01:04]}  Qxe5 {[%clk 0:00:58]} 23. Nd7 {[%clk 0:00:58]}  Qb2 {[%clk 0:00:57]} 24. Nxb8 {[%clk 0:00:54]}  Qxd2 {[%clk 0:00:57]} 25. Nc6 {[%clk 0:00:53]}  Bf6 {[%clk 0:00:54]} 26. Nxa7 {[%clk 0:00:53]}  Qa2 {[%clk 0:00:37]} 27. Rc8 {[%clk 0:00:52]}  g6 {[%clk 0:00:35]} 28. Rxf8+ {[%clk 0:00:39]}  Kxf8 {[%clk 0:00:36]} 29. Nc6 {[%clk 0:00:37]}  Qxa3 {[%clk 0:00:34]} 30. Qd7 {[%clk 0:00:33]}  Qc3 {[%clk 0:00:29]} 31. Rd1 {[%clk 0:00:25]}  Qc2 {[%clk 0:00:24]} 32. Re1 {[%clk 0:00:19]}  Qc3 {[%clk 0:00:25]} 33. Rd1 {[%clk 0:00:04]}  Qc2 {[%clk 0:00:25]} 34. Rf1 {[%clk 0:00:03]}  Bxf1 {[%clk 0:00:24]} 35. Kxf1 {[%clk 0:00:04]}  Qc1+ {[%clk 0:00:17]} 36. Ke2 {[%clk 0:00:04]}  Qc2+ {[%clk 0:00:18]} 37. Kf1 {[%clk 0:00:03]}  Qc1+ {[%clk 0:00:15]} 38. Ke2 {[%clk 0:00:03]}  Qc4+ {[%clk 0:00:12]} 39. Ke1 {[%clk 0:00:02]}  Bc3+ {[%clk 0:00:12]} 40. Kd1 {[%clk 0:00:02]}  Qb3+ {[%clk 0:00:12]} 41. Ke2 {[%clk 0:00:01]}  Qc2+ {[%clk 0:00:11]} 42. Kf1 {[%clk 0:00:00]}  Qc1+ {[%clk 0:00:11]} 0-1


[Site "https://www.chess.com"]

[Event "Titled Tuesday Blitz August 08 Early 2023"]
[White "Adewumi, Tanitoluwa"]
[Black "FoxOnTheRun97"]
[WhiteFideId "30966396"]
[WhiteElo "2743"]
[BlackElo "2566"]
[Result "1-0"]
[Round "6"]
[TimeControl "180+1"]
[Date "2023.08.08"]
[WhiteClock "0:00:22"]
[BlackClock "0:00:07"]
[Board "67"]

1. e4 {[%clk 0:02:54]}  c6 {[%clk 0:03:00]} 2. d4 {[%clk 0:02:53]}  d5 {[%clk 0:03:01]} 3. exd5 {[%clk 0:02:53]}  cxd5 {[%clk 0:03:01]} 4. Bd3 {[%clk 0:02:53]}  Nc6 {[%clk 0:03:01]} 5. c3 {[%clk 0:02:53]}  Qc7 {[%clk 0:03:01]} 6. Ne2 {[%clk 0:02:53]}  e5 {[%clk 0:03:01]} 7. dxe5 {[%clk 0:02:52]}  Nxe5 {[%clk 0:03:01]} 8. O-O {[%clk 0:02:51]}  Nxd3 {[%clk 0:02:59]} 9. Qxd3 {[%clk 0:02:51]}  Nf6 {[%clk 0:02:59]} 10. Bg5 {[%clk 0:02:50]}  Be7 {[%clk 0:02:56]} 11. Nf4 {[%clk 0:02:49]}  O-O {[%clk 0:02:13]} 12. Bxf6 {[%clk 0:02:44]}  Bxf6 {[%clk 0:02:14]} 13. Nxd5 {[%clk 0:02:45]}  Qc6 {[%clk 0:02:14]} 14. Nd2 {[%clk 0:02:28]}  Bd8 {[%clk 0:02:04]} 15. Nf3 {[%clk 0:02:17]}  Be6 {[%clk 0:02:00]} 16. Rad1 {[%clk 0:02:16]}  Re8 {[%clk 0:01:41]} 17. Rfe1 {[%clk 0:02:14]}  h6 {[%clk 0:01:36]} 18. a3 {[%clk 0:02:03]}  a5 {[%clk 0:01:33]} 19. h3 {[%clk 0:01:50]}  a4 {[%clk 0:01:20]} 20. Qd4 {[%clk 0:01:24]}  Rc8 {[%clk 0:00:36]} 21. Re2 {[%clk 0:01:03]}  Qc5 {[%clk 0:00:28]} 22. Nf4 {[%clk 0:00:51]}  Qxd4 {[%clk 0:00:10]} 23. Rxd4 {[%clk 0:00:52]}  b5 {[%clk 0:00:08]} 24. Rde4 {[%clk 0:00:45]}  Bf6 {[%clk 0:00:05]} 25. Nxe6 {[%clk 0:00:41]}  fxe6 {[%clk 0:00:05]} 26. Rxe6 {[%clk 0:00:41]}  Rxe6 {[%clk 0:00:06]} 27. Rxe6 {[%clk 0:00:42]}  Rc5 {[%clk 0:00:04]} 28. Kf1 {[%clk 0:00:37]}  Rd5 {[%clk 0:00:04]} 29. Ke2 {[%clk 0:00:35]}  Kf7 {[%clk 0:00:04]} 30. Re3 {[%clk 0:00:32]}  h5 {[%clk 0:00:05]} 31. Rd3 {[%clk 0:00:31]}  Rc5 {[%clk 0:00:05]} 32. Nd2 {[%clk 0:00:30]}  Re5+ {[%clk 0:00:04]} 33. Re3 {[%clk 0:00:30]}  Rd5 {[%clk 0:00:03]} 34. Ne4 {[%clk 0:00:29]}  Be7 {[%clk 0:00:02]} 35. Rf3+ {[%clk 0:00:27]}  Ke6 {[%clk 0:00:02]} 36. Rd3 {[%clk 0:00:24]}  Re5 {[%clk 0:00:02]} 37. Re3 {[%clk 0:00:24]}  g5 {[%clk 0:00:02]} 38. g3 {[%clk 0:00:22]}  Kf5 {[%clk 0:00:02]} 39. Nd2 {[%clk 0:00:18]}  Rxe3+ {[%clk 0:00:02]} 40. Kxe3 {[%clk 0:00:18]}  Bc5+ {[%clk 0:00:02]} 41. Kf3 {[%clk 0:00:18]}  g4+ {[%clk 0:00:02]} 42. hxg4+ {[%clk 0:00:19]}  hxg4+ {[%clk 0:00:02]} 43. Ke2 {[%clk 0:00:19]}  Ke5 {[%clk 0:00:03]} 44. Nf1 {[%clk 0:00:19]}  Kf5 {[%clk 0:00:01]} 45. Ne3+ {[%clk 0:00:19]}  Kg5 {[%clk 0:00:01]} 46. Nc2 {[%clk 0:00:16]}  Kf5 {[%clk 0:00:01]} 47. Nd4+ {[%clk 0:00:15]}  Bxd4 {[%clk 0:00:02]} 48. cxd4 {[%clk 0:00:15]}  Ke4 {[%clk 0:00:03]} 49. d5 {[%clk 0:00:15]}  Kxd5 {[%clk 0:00:03]} 50. Kd3 {[%clk 0:00:15]}  Ke5 {[%clk 0:00:02]} 51. Ke3 {[%clk 0:00:16]}  Kd5 {[%clk 0:00:01]} 52. f3 {[%clk 0:00:15]}  gxf3 {[%clk 0:00:01]} 53. g4 {[%clk 0:00:15]}  Kc4 {[%clk 0:00:02]} 54. g5 {[%clk 0:00:15]}  Kd5 {[%clk 0:00:02]} 55. Kxf3 {[%clk 0:00:15]}  Ke6 {[%clk 0:00:02]} 56. Ke3 {[%clk 0:00:14]}  Kf5 {[%clk 0:00:03]} 57. Kd4 {[%clk 0:00:15]}  Kxg5 {[%clk 0:00:03]} 58. Kc5 {[%clk 0:00:15]}  Kf4 {[%clk 0:00:04]} 59. Kxb5 {[%clk 0:00:16]}  Ke5 {[%clk 0:00:04]} 60. Kxa4 {[%clk 0:00:16]}  Kd6 {[%clk 0:00:05]} 61. b4 {[%clk 0:00:17]}  Kc6 {[%clk 0:00:06]} 62. Kb3 {[%clk 0:00:18]}  Kb6 {[%clk 0:00:06]} 63. a4 {[%clk 0:00:19]}  Ka6 {[%clk 0:00:07]} 64. Kc4 {[%clk 0:00:20]}  Kb6 {[%clk 0:00:08]} 65. b5 {[%clk 0:00:21]}  Ka5 {[%clk 0:00:08]} 66. Kc5 {[%clk 0:00:22]}  Kxa4 {[%clk 0:00:07]} 67. b6 {[%clk 0:00:22]} 1-0


[Site "https://www.chess.com"]

[Event "Titled Tuesday Blitz August 08 Early 2023"]
[White "Timmermans, Mark"]
[Black "Al-Tarboush, Ward"]
[WhiteFideId "1026399"]
[BlackFideId "7601450"]
[WhiteElo "2717"]
[BlackElo "2557"]
[Result "1-0"]
[Round "6"]
[TimeControl "180+1"]
[Date "2023.08.08"]
[WhiteClock "0:00:40"]
[BlackClock "0:00:00"]
[Board "72"]

1. b4 {[%clk 0:03:00]}  e6 {[%clk 0:02:59]} 2. Bb2 {[%clk 0:03:00]}  Nf6 {[%clk 0:02:59]} 3. b5 {[%clk 0:03:00]}  c5 {[%clk 0:02:58]} 4. c4 {[%clk 0:02:59]}  Be7 {[%clk 0:02:57]} 5. e3 {[%clk 0:02:59]}  O-O {[%clk 0:02:57]} 6. a4 {[%clk 0:03:00]}  a5 {[%clk 0:02:56]} 7. Nf3 {[%clk 0:03:01]}  b6 {[%clk 0:02:56]} 8. Be2 {[%clk 0:03:02]}  Bb7 {[%clk 0:02:56]} 9. O-O {[%clk 0:03:03]}  d5 {[%clk 0:02:55]} 10. d4 {[%clk 0:03:03]}  dxc4 {[%clk 0:02:54]} 11. Bxc4 {[%clk 0:03:03]}  Nbd7 {[%clk 0:02:53]} 12. Nbd2 {[%clk 0:03:03]}  Rc8 {[%clk 0:02:52]} 13. Be2 {[%clk 0:03:00]}  Re8 {[%clk 0:02:46]} 14. Rc1 {[%clk 0:02:57]}  Nf8 {[%clk 0:02:46]} 15. Ne5 {[%clk 0:02:54]}  Ng6 {[%clk 0:02:42]} 16. Ndc4 {[%clk 0:02:51]}  Bd5 {[%clk 0:02:18]} 17. Bf3 {[%clk 0:02:50]}  Ne4 {[%clk 0:01:44]} 18. dxc5 {[%clk 0:02:41]}  Bxc5 {[%clk 0:01:39]} 19. Nc6 {[%clk 0:02:33]}  Qg5 {[%clk 0:01:29]} 20. Bd4 {[%clk 0:02:14]}  Nh4 {[%clk 0:01:24]} 21. N4e5 {[%clk 0:02:10]}  Bxd4 {[%clk 0:01:12]} 22. Qxd4 {[%clk 0:02:05]}  Nxg2 {[%clk 0:00:28]} 23. Bxg2 {[%clk 0:01:47]}  Nc3 {[%clk 0:00:17]} 24. Qg4 {[%clk 0:01:34]}  Ne2+ {[%clk 0:00:17]} 25. Kh1 {[%clk 0:01:33]}  Qxg4 {[%clk 0:00:16]} 26. Nxg4 {[%clk 0:01:33]}  Nxc1 {[%clk 0:00:15]} 27. Rxc1 {[%clk 0:01:33]}  Bxc6 {[%clk 0:00:07]} 28. Bxc6 {[%clk 0:01:29]}  f6 {[%clk 0:00:05]} 29. e4 {[%clk 0:01:26]}  e5 {[%clk 0:00:05]} 30. Ne3 {[%clk 0:01:26]}  Red8 {[%clk 0:00:04]} 31. Nd5 {[%clk 0:01:27]}  Rb8 {[%clk 0:00:05]} 32. Kg2 {[%clk 0:01:25]}  Kf8 {[%clk 0:00:05]} 33. Kf3 {[%clk 0:01:25]}  Kf7 {[%clk 0:00:04]} 34. Ke3 {[%clk 0:01:25]}  Ke6 {[%clk 0:00:05]} 35. f3 {[%clk 0:01:25]}  g6 {[%clk 0:00:04]} 36. Nc7+ {[%clk 0:01:18]}  Ke7 {[%clk 0:00:04]} 37. h4 {[%clk 0:01:14]}  f5 {[%clk 0:00:03]} 38. h5 {[%clk 0:01:13]}  f4+ {[%clk 0:00:03]} 39. Ke2 {[%clk 0:01:13]}  Rd4 {[%clk 0:00:02]} 40. hxg6 {[%clk 0:01:12]}  hxg6 {[%clk 0:00:03]} 41. Rg1 {[%clk 0:01:08]}  Kf6 {[%clk 0:00:02]} 42. Nd5+ {[%clk 0:01:07]}  Kf7 {[%clk 0:00:03]} 43. Nc3 {[%clk 0:01:05]}  Rbd8 {[%clk 0:00:03]} 44. Bd5+ {[%clk 0:01:04]}  Kf6 {[%clk 0:00:04]} 45. Bb3 {[%clk 0:01:03]}  Kg7 {[%clk 0:00:03]} 46. Be6 {[%clk 0:01:02]}  R8d6 {[%clk 0:00:03]} 47. Bf5 {[%clk 0:01:01]}  Rc4 {[%clk 0:00:03]} 48. Nd5 {[%clk 0:01:01]}  Rc2+ {[%clk 0:00:03]} 49. Kd3 {[%clk 0:01:01]}  Ra2 {[%clk 0:00:03]} 50. Kc4 {[%clk 0:00:58]}  Rxa4+ {[%clk 0:00:03]} 51. Kb3 {[%clk 0:00:59]}  Rd4 {[%clk 0:00:03]} 52. Bg4 {[%clk 0:00:58]}  Rd3+ {[%clk 0:00:03]} 53. Kc4 {[%clk 0:00:55]}  Rd4+ {[%clk 0:00:04]} 54. Kc3 {[%clk 0:00:54]}  a4 {[%clk 0:00:03]} 55. Ra1 {[%clk 0:00:54]}  g5 {[%clk 0:00:02]} 56. Nb4 {[%clk 0:00:52]}  Rh6 {[%clk 0:00:01]} 57. Rxa4 {[%clk 0:00:51]}  Rh2 {[%clk 0:00:02]} 58. Ra7+ {[%clk 0:00:51]}  Kg6 {[%clk 0:00:02]} 59. Bf5+ {[%clk 0:00:51]}  Kf6 {[%clk 0:00:02]} 60. Rb7 {[%clk 0:00:48]}  Rf2 {[%clk 0:00:02]} 61. Rxb6+ {[%clk 0:00:47]}  Kf7 {[%clk 0:00:03]} 62. Bg4 {[%clk 0:00:47]}  Rg2 {[%clk 0:00:01]} 63. Bh5+ {[%clk 0:00:47]}  Ke7 {[%clk 0:00:01]} 64. Nd5+ {[%clk 0:00:48]}  Kd7 {[%clk 0:00:02]} 65. Bg4+ {[%clk 0:00:47]}  Ke8 {[%clk 0:00:01]} 66. Be6 {[%clk 0:00:47]}  Kf8 {[%clk 0:00:01]} 67. Rb7 {[%clk 0:00:45]}  Rg3 {[%clk 0:00:01]} 68. Rf7+ {[%clk 0:00:45]}  Ke8 {[%clk 0:00:01]} 69. Nf6+ {[%clk 0:00:41]}  Kd8 {[%clk 0:00:01]} 70. Bg4 {[%clk 0:00:42]}  Rd6 {[%clk 0:00:00]} 71. Nd5 {[%clk 0:00:40]} 1-0


[Site "https://www.chess.com"]